fUST/lending_fUST_20250630
["ID","MTS","AMOUNT","RATE_DAILY","PERIOD"]
[368639016,1751259039939,-462.64977402,0.0001822,2]
[368639017,1751259039949,-460.0,0.0001822,2]
[368639018,1751259039958,-460.0,0.0001822,2]
[368639019,1751259039967,-464.4263832,0.0001822,2]
[368639020,1751259039977,-460.0,0.0001822,2]
[368639021,1751259039986,-460.0,0.0001822,2]
[368639022,1751259039995,-460.0,0.0001822,2]
[368639023,1751259040005,-460.49493752,0.0001822,2]
[368639024,1751259040015,-460.0,0.0001822,2]
[368639025,1751259040024,-460.0,0.0001822,2]
[368639026,1751259040034,-460.0,0.0001822,2]
[368639027,1751259040043,-460.0,0.0001822,2]
[368639028,1751259040053,-460.0,0.0001822,2]
[368639029,1751259040063,-460.0,0.0001822,2]
[368639030,1751259040072,-460.0,0.0001822,2]
[368639031,1751259040082,-448.41619267,0.0001822,2]
[368639032,1751259040091,-1591.8,0.0001822,2]
[368639033,1751259040100,-460.0,0.0001822,2]
[368639034,1751259040110,-1914.98,0.0001822,2]
[368639035,1751259040119,-463.21312367,0.0001822,2]
[368639036,1751259040129,-460.0,0.0001822,2]
[368639037,1751259040139,-1271.67,0.0001822,2]
[368639039,1751259040148,-1378.81,0.0001822,2]
[368639041,1751259040158,-935.98,0.0001822,2]
[368639043,1751259040167,-4325.5,0.0001822,2]
[368639045,1751259040176,-1164.87,0.0001822,2]
[368639046,1751259040186,-4035.9,0.0001822,2]
[368639047,1751259040195,-460.0,0.0001822,2]
[368639048,1751259040204,-1265.04,0.0001822,2]
[368639049,1751259040214,-460.0,0.00018221,2]
[368639050,1751259040223,-460.0,0.00018221,2]
[368639051,1751259040232,-447.04088469,0.00018221,2]
[368639052,1751259040242,-460.0,0.00018221,2]
[368639053,1751259040251,-460.0,0.00018221,2]
[368639054,1751259040260,-460.0,0.00018221,2]
[368639055,1751259040270,-460.0,0.00018221,2]
[368639056,1751259040280,-560.78,0.00018221,2]
[368639057,1751259040289,-460.0,0.00018221,2]
[368639058,1751259040298,-460.0,0.00018221,2]
[368639059,1751259040307,-460.0,0.00018221,2]
[368639060,1751259040317,-460.0,0.00018221,2]
[368639061,1751259040327,-460.0,0.00018221,2]
[368639062,1751259040338,-467.81463015,0.00018221,2]
[368639063,1751259040347,-460.0,0.00018221,2]
[368639064,1751259040357,-460.0,0.00018221,2]
[368639065,1751259040366,-542.21577561,0.00018221,2]
[368639066,1751259040376,-460.0,0.00018221,2]
[368639067,1751259040386,-460.0,0.00018221,2]
[368639068,1751259040396,-460.0,0.00018221,2]
[368639069,1751259040406,-491.61,0.00018221,2]
[368639070,1751259040415,-460.0,0.00018221,2]
[368639072,1751259040424,-460.0,0.00018221,2]
[368639073,1751259040434,-460.0,0.00018221,2]
[368639074,1751259040443,-460.0,0.00018221,2]
[368639075,1751259040453,-460.0,0.00018221,2]
[368639076,1751259040462,-460.0,0.00018221,2]
[368639077,1751259040472,-460.0,0.00018221,2]
[368639078,1751259040481,-335.10440052,0.00018221,2]
[368639079,1751259040491,-460.0,0.00018221,2]
[368639080,1751259040500,-460.0,0.00018221,2]
[368639081,1751259040510,-460.0,0.00018221,2]
[368639082,1751259040519,-460.0,0.00018221,2]
[368639083,1751259040529,-460.0,0.00018225,2]
[368639085,1751259040539,-561.17,0.00018225,2]
[368639087,1751259040547,-225.32449672,0.00018225,2]
[368639089,1751259040557,-460.0,0.00018226,2]
[368639091,1751259040566,-322.73804489,0.00018226,2]
[368639093,1751259040576,-460.0,0.00018226,2]
[368639095,1751259040585,-460.0,0.00018226,2]
[368639096,1751259040595,-461.49991213,0.00018226,2]
[368639097,1751259040604,-592.84166629,0.00018226,2]
[368639098,1751259040614,-343.91992603,0.00018226,2]
[368639099,1751259040623,-460.0,0.00018228,2]
[368639100,1751259040632,-151.0,0.00018365,2]
[368639101,1751259040642,-151.0,0.00018365,2]
[368639102,1751259040651,-151.0,0.00018365,2]
[368639103,1751259040660,-151.31756435,0.00018365,2]
[368639104,1751259040670,-151.0,0.00018365,2]
[368639105,1751259040679,-151.0,0.00018365,2]
[368639106,1751259040688,-256.32031955,0.00018402,2]
[368639107,1751259040697,-326.79002608,0.0001849,2]
[368639108,1751259040707,-460.0,0.0001849,2]
[368639109,1751259040716,-460.0,0.0001849,2]
[368639110,1751259040725,-1363.85,0.0001849,2]
[368639111,1751259040735,-460.0,0.0001849,2]
[368639112,1751259040744,-1512.1,0.0001849,2]
[368639113,1751259040754,-2131.26,0.00018491,2]
[368639114,1751259040763,-2014.01,0.00018491,2]
[368639115,1751259040773,-460.0,0.00018491,2]
[368639116,1751259040782,-460.0,0.00018491,2]
[368639117,1751259040791,-460.0,0.00018491,2]
[368639118,1751259040801,-460.0,0.00018491,2]
[368639119,1751259040810,-457.06048945,0.00018491,2]
[368639120,1751259040820,-1797.48,0.00018491,2]
[368639121,1751259040829,-2389.95,0.00018491,2]
[368639122,1751259040839,-594.41349287,0.00018491,2]
[368639123,1751259040848,-2078.6,0.00018491,2]
[368639124,1751259040858,-460.0,0.00018491,2]
[368639125,1751259040867,-1134.47,0.00018491,2]
[368639126,1751259040877,-460.0,0.00018491,2]
[368639127,1751259040887,-460.0,0.00018491,2]
[368639128,1751259040896,-460.0,0.00018491,2]
[368639129,1751259040906,-460.0,0.00018491,2]
[368639130,1751259040915,-460.0,0.00018493,2]
[368639131,1751259040925,-463.37645513,0.00018493,2]
[368639132,1751259040934,-470.35603743,0.00018493,2]
[368639133,1751259040943,-460.0,0.00018493,2]
[368639134,1751259040954,-460.0,0.00018493,2]
[368639135,1751259040963,-460.0,0.00018493,2]
[368639136,1751259040973,-460.0,0.00018493,2]
[368639137,1751259040982,-460.0,0.00018493,2]
[368639138,1751259040991,-523.73,0.00018493,2]
[368639139,1751259041000,-1421.16,0.00018493,2]
[368639140,1751259041009,-460.0,0.00018493,2]
[368639141,1751259041018,-460.0,0.00018493,2]
[368639142,1751259041028,-460.0,0.00018493,2]
[368639143,1751259041037,-460.0,0.00018493,2]
[368639144,1751259041046,-474.59,0.00018493,2]
[368639145,1751259041056,-460.0,0.00018493,2]
[368639146,1751259041065,-460.0,0.00018493,2]
[368639147,1751259041074,-782.71,0.00018493,2]
[368639148,1751259041083,-460.0,0.00018493,2]
[368639149,1751259041092,-504.68,0.00018493,2]
[368639150,1751259041102,-460.0,0.00018493,2]
[368639151,1751259041111,-11814.45,0.00018493,2]
[368639152,1751259041120,-722.46,0.00018493,2]
[368639153,1751259041130,-460.0,0.00018493,2]
[368639154,1751259041139,-460.0,0.00018493,2]
[368639155,1751259041150,-1050.23,0.00018493,2]
[368639156,1751259041159,-460.0,0.00018493,2]
[368639157,1751259041168,-825.19,0.00018493,2]
[368639158,1751259041178,-460.0,0.00018493,2]
[368639159,1751259041187,-460.0,0.00018493,2]
[368639160,1751259041198,-460.0,0.00018493,2]
[368639161,1751259041207,-460.0,0.00018494,2]
[368639162,1751259041216,-460.0,0.00018494,2]
[368639163,1751259041225,-466.20191425,0.00018494,2]
[368639164,1751259041234,-460.0,0.00018494,2]
[368639165,1751259041244,-382.23150915,0.00018494,2]
[368639166,1751259041253,-473.34154621,0.00018494,2]
[368639167,1751259041409,-460.0,0.00018494,2]
[368639168,1751259041423,-463.92278916,0.00018494,2]
[368639169,1751259041435,-460.0,0.00018494,2]
[368639170,1751259041444,-460.0,0.00018494,2]
[368639171,1751259041453,-460.0,0.00018494,2]
[368639172,1751259041462,-460.0,0.00018494,2]
[368639173,1751259041472,-460.0,0.00018494,2]
[368639174,1751259041482,-460.0,0.00018494,2]
[368639175,1751259041491,-460.0,0.00018494,2]
[368639176,1751259041500,-1591.8,0.00018494,2]
[368639177,1751259041510,-460.0,0.00018494,2]
[368639178,1751259041523,-1914.98,0.00018494,2]
[368639179,1751259041533,-460.0,0.00018494,2]
[368639180,1751259041543,-1271.67,0.00018494,2]
[368639181,1751259041552,-1378.81,0.00018494,2]
[368639182,1751259041561,-935.98,0.00018494,2]
[368639183,1751259041571,-4325.5,0.00018494,2]
[368639184,1751259041580,-1164.87,0.00018494,2]
[368639185,1751259041589,-4035.9,0.00018494,2]
[368639186,1751259041598,-460.0,0.00018494,2]
[368639187,1751259041607,-1265.04,0.00018494,2]
[368639188,1751259041617,-448.59815727,0.00018495,2]
[368639189,1751259041627,-256.65248443,0.00018495,2]
[368639190,1751259041636,-460.0,0.00018495,2]
[368639191,1751259041645,-460.0,0.00018495,2]
[368639192,1751259041655,-460.0,0.00018495,2]
[368639193,1751259041664,-327.00166879,0.00018495,2]
[368639194,1751259041673,-460.0,0.00018495,2]
[368639195,1751259041683,-460.0,0.00018495,2]
[368639196,1751259041692,-491.61,0.00018495,2]
[368639197,1751259041702,-460.0,0.00018495,2]
[368639198,1751259041711,-460.0,0.00018495,2]
[368639199,1751259041722,-460.0,0.00018495,2]
[368639200,1751259041731,-460.0,0.00018495,2]
[368639201,1751259041741,-460.0,0.00018495,2]
[368639202,1751259041752,-460.0,0.00018495,2]
[368639203,1751259041760,-460.0,0.00018495,2]
[368639204,1751259041770,-561.17,0.00018499,2]
[368639205,1751259041779,-460.0,0.00018502,2]
[368639206,1751259041789,-2486.45030592,0.00018668,2]
[368639207,1751259041799,-460.0,0.00018764,2]
[368639208,1751259041810,-460.0,0.00018764,2]
[368639209,1751259041819,-1363.85,0.00018764,2]
[368639210,1751259041829,-460.0,0.00018764,2]
[368639211,1751259041839,-1512.1,0.00018764,2]
[368639212,1751259041848,-2131.26,0.00018765,2]
[368639213,1751259041858,-2014.01,0.00018765,2]
[368639214,1751259041867,-460.0,0.00018765,2]
[368639215,1751259041877,-460.0,0.00018765,2]
[368639216,1751259041886,-1797.48,0.00018765,2]
[368639217,1751259041895,-2389.95,0.00018765,2]
[368639218,1751259041905,-2078.6,0.00018765,2]
[368639219,1751259041914,-460.0,0.00018765,2]
[368639220,1751259041923,-1134.47,0.00018765,2]
[368639221,1751259041932,-460.0,0.00018765,2]
[368639222,1751259041942,-460.0,0.00018765,2]
[368639223,1751259041952,-460.0,0.00018765,2]
[368639224,1751259041961,-460.0,0.00018765,2]
[368639225,1751259041971,-468.6654311,0.00018767,2]
[368639226,1751259041981,-460.0,0.00018767,2]
[368639227,1751259041990,-523.73,0.00018767,2]
[368639228,1751259041999,-1421.16,0.00018767,2]
[368639229,1751259042008,-460.0,0.00018767,2]
[368639230,1751259042018,-460.0,0.00018767,2]
[368639231,1751259042028,-460.0,0.00018767,2]
[368639232,1751259042037,-460.0,0.00018767,2]
[368639233,1751259042047,-474.59,0.00018767,2]
[368639234,1751259042056,-460.0,0.00018767,2]
[368639235,1751259042065,-460.0,0.00018767,2]
[368639236,1751259042075,-782.71,0.00018767,2]
[368639237,1751259042085,-460.0,0.00018767,2]
[368639238,1751259042094,-504.68,0.00018767,2]
[368639239,1751259042104,-460.0,0.00018767,2]
[368639240,1751259042114,-11814.45,0.00018767,2]
[368639241,1751259042124,-722.46,0.00018767,2]
[368639242,1751259042133,-460.0,0.00018767,2]
[368639243,1751259042143,-460.0,0.00018767,2]
[368639244,1751259042152,-1050.23,0.00018767,2]
[368639245,1751259042162,-466.7751742,0.00018767,2]
[368639246,1751259042171,-825.19,0.00018767,2]
[368639247,1751259042180,-460.0,0.00018767,2]
[368639248,1751259042190,-607.88,0.00018767,2]
[368639249,1751259042199,-460.0,0.00018767,2]
[368639250,1751259042208,-460.0,0.00018768,2]
[368639251,1751259042218,-460.0,0.00018768,2]
[368639252,1751259042227,-460.0,0.00018768,2]
[368639253,1751259042236,-460.0,0.00018768,2]
[368639254,1751259042246,-460.0,0.00018768,2]
[368639255,1751259042255,-460.0,0.00018768,2]
[368639256,1751259042264,-457.35693487,0.00018768,2]
[368639257,1751259042273,-1591.8,0.00018768,2]
[368639258,1751259042282,-460.0,0.00018768,2]
[368639259,1751259042291,-1914.98,0.00018768,2]
[368639260,1751259042300,-1271.67,0.00018768,2]
[368639261,1751259042309,-460.0,0.00018768,2]
[368639262,1751259042319,-1378.81,0.00018768,2]
[368639263,1751259042329,-935.98,0.00018768,2]
[368639264,1751259042338,-4325.5,0.00018768,2]
[368639265,1751259042350,-1164.87,0.00018768,2]
[368639266,1751259042359,-4035.9,0.00018768,2]
[368639267,1751259042368,-460.0,0.00018768,2]
[368639268,1751259042377,-1265.04,0.00018768,2]
[368639269,1751259042386,-460.0,0.00018769,2]
[368639270,1751259042395,-460.0,0.00018769,2]
[368639271,1751259042405,-460.0,0.00018769,2]
[368639272,1751259042414,-245.77939563,0.00018769,2]
[368639273,1751259042423,-460.0,0.00018769,2]
[368639274,1751259042432,-491.61,0.00018769,2]
[368639275,1751259042441,-460.0,0.00018769,2]
[368639276,1751259042452,-460.1630902,0.00018769,2]
[368639277,1751259042461,-460.0,0.00018769,2]
[368639278,1751259042470,-460.0,0.00018769,2]
[368639279,1751259042480,-460.0,0.00018769,2]
[368639280,1751259042489,-561.17,0.00018773,2]
[368639281,1751259042500,-556.67630465,0.00018776,2]
[368639282,1751259042510,-155.98203396,0.00019034,2]
[368639283,1751259042519,-619.49101344,0.00019036,2]
[368639284,1751259042529,-160.0,0.00019037,2]
[368639285,1751259042538,-160.0,0.00019037,2]
[368639286,1751259042547,-213.84631524,0.00019037,2]
[368639287,1751259042557,-160.0,0.00019037,2]
[368639288,1751259042566,-160.0,0.00019037,2]
[368639289,1751259042577,-230.31346914,0.00019037,2]
[368639290,1751259042586,-214.99848635,0.00019037,2]
[368639291,1751259042596,-12569.13231816,0.00019037,2]
[368639292,1751259042606,-837.16779106,0.00019037,2]
[368639293,1751259042615,-847.41730813,0.00019037,2]
[368639294,1751259042625,-160.0,0.00019037,2]
[368639295,1751259042634,-160.0,0.00019037,2]
[368639296,1751259042643,-160.0,0.00019037,2]
[368639297,1751259042651,-460.0,0.00019038,2]
[368639298,1751259042661,-460.0,0.00019038,2]
[368639299,1751259042670,-1363.85,0.00019038,2]
[368639300,1751259042679,-460.0,0.00019038,2]
[368639301,1751259042688,-1512.1,0.00019038,2]
[368639302,1751259042698,-500.0,0.00019038,2]
[368639303,1751259042707,-500.0,0.00019038,2]
[368639304,1751259042716,-2131.26,0.00019039,2]
[368639305,1751259042726,-2014.01,0.00019039,2]
[368639306,1751259042735,-460.0,0.00019039,2]
[368639307,1751259042744,-460.0,0.00019039,2]
[368639308,1751259042753,-1797.48,0.00019039,2]
[368639309,1751259042763,-2389.95,0.00019039,2]
[368639310,1751259042772,-2078.6,0.00019039,2]
[368639311,1751259042782,-460.0,0.00019039,2]
[368639312,1751259042791,-1134.47,0.00019039,2]
[368639313,1751259042800,-460.0,0.00019039,2]
[368639314,1751259042809,-460.0,0.00019039,2]
[368639315,1751259042818,-460.0,0.00019039,2]
[368639316,1751259042827,-460.0,0.00019039,2]
[368639317,1751259042836,-184.52,0.00019041,2]
[368639318,1751259042845,-523.73,0.00019041,2]
[368639319,1751259042855,-1421.16,0.00019041,2]
[368639320,1751259042864,-460.0,0.00019041,2]
[368639321,1751259042873,-460.0,0.00019041,2]
[368639322,1751259042882,-460.0,0.00019041,2]
[368639323,1751259042891,-539.56,0.00019041,2]
[368639324,1751259042901,-474.59,0.00019041,2]
[368639325,1751259042910,-460.0,0.00019041,2]
[368639326,1751259042919,-460.0,0.00019041,2]
[368639327,1751259042929,-782.71,0.00019041,2]
[368639328,1751259042939,-460.0,0.00019041,2]
[368639329,1751259042948,-504.68,0.00019041,2]
[368639330,1751259042956,-460.0,0.00019041,2]
[368639331,1751259042965,-11814.45,0.00019041,2]
[368639332,1751259042975,-722.46,0.00019041,2]
[368639333,1751259042984,-460.0,0.00019041,2]
[368639334,1751259042993,-460.0,0.00019041,2]
[368639335,1751259043002,-1050.23,0.00019041,2]
[368639336,1751259043011,-825.19,0.00019041,2]
[368639337,1751259043020,-460.0,0.00019041,2]
[368639338,1751259043029,-460.0,0.00019041,2]
[368639339,1751259043038,-460.0,0.00019042,2]
[368639340,1751259043047,-460.0,0.00019042,2]
[368639341,1751259043056,-460.0,0.00019042,2]
[368639342,1751259043066,-1591.8,0.00019042,2]
[368639343,1751259043075,-1914.98,0.00019042,2]
[368639344,1751259043084,-1271.67,0.00019042,2]
[368639345,1751259043094,-460.0,0.00019042,2]
[368639346,1751259043103,-1378.81,0.00019042,2]
[368639347,1751259043113,-935.98,0.00019042,2]
[368639348,1751259043122,-4325.5,0.00019042,2]
[368639349,1751259043133,-1164.87,0.00019042,2]
[368639350,1751259043142,-4035.9,0.00019042,2]
[368639351,1751259043151,-460.0,0.00019042,2]
[368639352,1751259043160,-1265.04,0.00019042,2]
[368639353,1751259043170,-460.0,0.00019043,2]
[368639354,1751259043179,-460.0,0.00019043,2]
[368639355,1751259043188,-460.0,0.00019043,2]
[368639356,1751259043198,-491.61,0.00019043,2]
[368639357,1751259043208,-460.0,0.00019043,2]
[368639358,1751259043217,-460.0,0.00019043,2]
[368639359,1751259043227,-460.0,0.00019043,2]
[368639360,1751259043236,-198.45258199,0.00019043,2]
[368639361,1751259043246,-561.17,0.00019047,2]
[368639362,1751259043255,-256.32031953,0.0001905,2]
[368639363,1751259043264,-500.0,0.00019058,2]
[368639364,1751259043274,-500.0,0.00019058,2]
[368639365,1751259043283,-500.35967422,0.00019096,2]
[368639366,1751259043292,-373.45339373,0.00019164,2]
[368639367,1751259043302,-477.531061,0.00019178,2]
[368639368,1751259043311,-500.0,0.00019216,2]
[368639369,1751259043319,-500.0,0.00019216,2]
[368639370,1751259043329,-500.36729744,0.00019216,2]
[368639371,1751259043338,-500.0,0.00019216,2]
[368639372,1751259043352,-631.17806332,0.00019216,2]
[368639373,1751259043361,-500.0,0.00019216,2]
[368639374,1751259043370,-500.0,0.00019216,2]
[368639375,1751259043378,-500.0,0.00019216,2]
[368639376,1751259043387,-500.0,0.00019216,2]
[368639377,1751259043396,-230.05013518,0.00019216,2]
[368639378,1751259043405,-500.0,0.00019216,2]
[368639379,1751259043413,-500.0,0.00019276,2]
[368639380,1751259043422,-500.0,0.00019276,2]
[368639381,1751259043433,-500.0,0.00019276,2]
[368639382,1751259043443,-473.3601971,0.00019289,2]
[368639383,1751259043452,-460.0,0.00019312,2]
[368639384,1751259043462,-460.0,0.00019312,2]
[368639385,1751259043472,-1363.85,0.00019312,2]
[368639386,1751259043481,-460.0,0.00019312,2]
[368639387,1751259043491,-1512.1,0.00019312,2]
[368639388,1751259043500,-2131.26,0.00019313,2]
[368639389,1751259043509,-2014.01,0.00019313,2]
[368639390,1751259043519,-460.0,0.00019313,2]
[368639391,1751259043528,-460.0,0.00019313,2]
[368639392,1751259043538,-1797.48,0.00019313,2]
[368639393,1751259043547,-2389.95,0.00019313,2]
[368639394,1751259043556,-2078.6,0.00019313,2]
[368639395,1751259043565,-460.0,0.00019313,2]
[368639396,1751259043574,-1134.47,0.00019313,2]
[368639397,1751259043584,-460.0,0.00019313,2]
[368639398,1751259043594,-460.0,0.00019313,2]
[368639399,1751259043603,-460.0,0.00019313,2]
[368639400,1751259043613,-460.0,0.00019313,2]
[368639401,1751259043623,-523.73,0.00019315,2]
[368639402,1751259043632,-1421.16,0.00019315,2]
[368639403,1751259043641,-460.0,0.00019315,2]
[368639404,1751259043650,-460.0,0.00019315,2]
[368639405,1751259043659,-460.0,0.00019315,2]
[368639406,1751259043668,-474.59,0.00019315,2]
[368639407,1751259043677,-460.0,0.00019315,2]
[368639408,1751259043686,-460.0,0.00019315,2]
[368639409,1751259043695,-782.71,0.00019315,2]
[368639410,1751259043703,-460.0,0.00019315,2]
[368639411,1751259043712,-504.68,0.00019315,2]
[368639412,1751259043721,-460.0,0.00019315,2]
[368639413,1751259043730,-11814.45,0.00019315,2]
[368639414,1751259043739,-722.46,0.00019315,2]
[368639415,1751259043749,-186.28,0.00019315,2]
[368639416,1751259043758,-607.72,0.00019315,2]
[368639417,1751259043767,-1050.23,0.00019315,2]
[368639418,1751259043776,-825.19,0.00019315,2]
[368639419,1751259043785,-460.0,0.00019315,2]
[368639420,1751259043794,-460.0,0.00019316,2]
[368639421,1751259043804,-460.0,0.00019316,2]
[368639422,1751259043813,-460.0,0.00019316,2]
[368639423,1751259043822,-1591.8,0.00019316,2]
[368639424,1751259043831,-1914.98,0.00019316,2]
[368639425,1751259043841,-1271.67,0.00019316,2]
[368639426,1751259043850,-460.0,0.00019316,2]
[368639427,1751259043859,-1378.81,0.00019316,2]
[368639428,1751259043868,-935.98,0.00019316,2]
[368639429,1751259043878,-4325.5,0.00019316,2]
[368639430,1751259043887,-1164.87,0.00019316,2]
[368639431,1751259043896,-4035.9,0.00019316,2]
[368639432,1751259043905,-460.0,0.00019316,2]
[368639433,1751259043914,-1265.04,0.00019316,2]
[368639434,1751259043923,-460.0,0.00019317,2]
[368639435,1751259043932,-460.0,0.00019317,2]
[368639436,1751259043942,-460.0,0.00019317,2]
[368639437,1751259043951,-491.61,0.00019317,2]
[368639438,1751259043960,-460.0,0.00019317,2]
[368639439,1751259043970,-460.0,0.00019317,2]
[368639440,1751259043980,-460.0,0.00019317,2]
[368639441,1751259043989,-561.17,0.00019321,2]
[368639442,1751259043998,-100000.0,0.00019329,2]
[368639443,1751259044008,-500.0,0.00019347,2]
[368639444,1751259044017,-513.77521357,0.00019347,2]
[368639445,1751259044026,-500.0,0.00019347,2]
[368639446,1751259044035,-513.77521357,0.00019347,2]
[368639447,1751259044045,-180.23105157,0.00019347,2]
[368639448,1751259044054,-513.77521357,0.00019347,2]
[368639449,1751259044063,-513.77521357,0.00019347,2]
[368639450,1751259044072,-513.77521357,0.00019347,2]
[368639451,1751259044081,-500.0,0.00019347,2]
[368639452,1751259044090,-513.77521357,0.00019347,2]
[368639453,1751259044099,-513.77521357,0.00019347,2]
[368639454,1751259044108,-500.0,0.00019347,2]
[368639455,1751259044117,-513.77521357,0.00019347,2]
[368639456,1751259044126,-352.40909863,0.00019347,2]
[368639457,1751259044136,-513.77521357,0.00019347,2]
[368639458,1751259044145,-500.0,0.00019347,2]
[368639459,1751259044154,-513.77521357,0.00019347,2]
[368639460,1751259044164,-513.77521357,0.00019347,2]
[368639461,1751259044173,-513.77521357,0.00019347,2]
[368639462,1751259044183,-513.77521357,0.00019347,2]
[368639463,1751259044192,-513.77521357,0.00019347,2]
[368639464,1751259044201,-513.77521357,0.00019347,2]
[368639465,1751259044211,-513.77521357,0.00019347,2]
[368639466,1751259044220,-207.4,0.00019348,2]
[368639467,1751259044230,-5000.0,0.00019348,2]
[368639468,1751259044239,-690.642,0.00019348,2]
[368639469,1751259044248,-25000.0,0.00019348,2]
[368639470,1751259044258,-500.0,0.0001936,2]
[368639471,1751259044267,-500.0,0.0001936,2]
[368639472,1751259044276,-500.21396602,0.0001936,2]
[368639474,1751259044285,-500.0,0.0001936,2]
[368639475,1751259044295,-500.0,0.0001936,2]
[368639476,1751259044304,-500.0,0.0001936,2]
[368639478,1751259044315,-318.76821944,0.0001936,2]
[368639479,1751259044324,-500.0,0.0001936,2]
[368639480,1751259044333,-500.0,0.0001936,2]
[368639481,1751259044343,-500.0,0.0001936,2]
[368639482,1751259044357,-467.37861634,0.0001936,2]
[368639483,1751259044367,-500.0,0.0001936,2]
[368639484,1751259044376,-257.0191211,0.0001936,2]
[368639485,1751259044386,-500.0,0.0001936,2]
[368639486,1751259044395,-500.0,0.0001936,2]
[368639487,1751259044404,-500.0,0.0001936,2]
[368639488,1751259044414,-500.0,0.0001936,2]
[368639489,1751259044424,-179.95359799,0.0001936,2]
[368639490,1751259044433,-327.33482435,0.0001936,2]
[368639491,1751259044443,-500.0,0.0001936,2]
[368639492,1751259044452,-500.0,0.0001936,2]
[368639493,1751259044461,-500.0,0.0001936,2]
[368639494,1751259044470,-512.94081828,0.0001936,2]
[368639495,1751259044479,-500.0,0.0001936,2]
[368639496,1751259044489,-166.3304022,0.0001936,2]
[368639497,1751259044498,-500.22306365,0.0001936,2]
[368639498,1751259044507,-376.28819171,0.0001936,2]
[368639499,1751259044517,-500.0,0.0001936,2]
[368639500,1751259044526,-500.0,0.0001936,2]
[368639501,1751259044535,-500.63965777,0.0001936,2]
[368639502,1751259044544,-500.0,0.0001936,2]
[368639503,1751259044553,-500.77605557,0.0001936,2]
[368639504,1751259044562,-500.0,0.0001936,2]
[368639505,1751259044572,-500.0,0.0001936,2]
[368639506,1751259044581,-668.05095468,0.00019377,2]
[368639507,1751259044591,-168.0,0.00019388,2]
[368639509,1751259044600,-716.195754,0.00019403,2]
[368639510,1751259044609,-151.0,0.00019406,2]
[368639511,1751259044619,-151.0,0.00019406,2]
[368639512,1751259044630,-151.0,0.00019406,2]
[368639513,1751259044640,-742.6949969,0.00019458,2]
[368639514,1751259044649,-770.17471178,0.00019513,2]
[368639515,1751259044660,-228.07514811,0.00019557,2]
[368639516,1751259044669,-798.67117612,0.00019568,2]
[368639517,1751259044678,-460.0,0.00019586,2]
[368639518,1751259044687,-488.01909533,0.00019586,2]
[368639519,1751259044697,-1363.85,0.00019586,2]
[368639520,1751259044706,-460.0,0.00019586,2]
[368639521,1751259044716,-1512.1,0.00019586,2]
[368639522,1751259044725,-2131.26,0.00019587,2]
[368639523,1751259044735,-2014.01,0.00019587,2]
[368639524,1751259044745,-460.0,0.00019587,2]
[368639525,1751259044754,-460.0,0.00019587,2]
[368639526,1751259044764,-1797.48,0.00019587,2]
[368639527,1751259044773,-2389.95,0.00019587,2]
[368639529,1751259044783,-2078.6,0.00019587,2]
[368639530,1751259044905,-460.0,0.00019587,2]